bitfinex/quotes_SOLUSD_20250908
["timestamp","ask_amount","ask_price","bid_price","bid_amount"]
[1757340746498,2.89637096,214.3,214.28,37.3]
[1757340746698,0.69,214.34,214.28,37.3]
[1757340746699,2.89637096,214.31,214.28,38.0]
[1757340746918,0.69,214.34,214.28,38.0]
[1757340747107,2.89637096,214.31,214.29,37.3]
[1757340747402,2.89637096,214.3,214.27,0.03]
[1757340747597,2.89637096,214.28,214.27,0.03]
[1757340747821,2.89637096,214.28,214.27,37.33]
[1757340748729,2.89637096,214.28,214.27,38.03]
[1757340749015,13.99808693,214.34,214.27,42.69696488]
[1757340749223,2.89637096,214.34,214.28,0.7]
[1757340749921,2.89637096,214.33,214.28,0.7]
[1757340750099,78.06506811,214.36,214.3,26.0]
[1757340750304,2.89637096,214.33,214.31,37.28]
[1757340750503,78.06506811,214.36,214.27,0.73]
[1757340750504,2.89637096,214.32,214.27,0.73]
[1757340750713,2.89637096,214.32,214.28,37.98]
[1757340750997,2.89637096,214.31,214.29,0.7]
[1757340751724,2.89637096,214.3,214.28,37.28]
[1757340752019,4.66526708,214.35,214.28,37.28]
[1757340752209,2.89637096,214.31,214.29,0.7]
[1757340752408,2.89637096,214.32,214.3,37.98]
[1757340752610,4.66526708,214.35,214.3,37.98]
[1757340752809,2.89637096,214.32,214.3,37.98]
[1757340753005,2.89637096,214.33,214.31,0.7]
[1757340753316,2.89637096,214.33,214.32,0.7]
[1757340753502,2.89637096,214.33,214.3,37.28]
[1757340753705,0.06,214.37,214.33,26.0]
[1757340754019,2.89637096,214.35,214.34,37.28]
[1757340754224,2.89637096,214.35,214.31,5.36599489]
[1757340754225,2.89637096,214.35,214.32,4.6658626]
[1757340754430,0.06,214.37,214.32,4.6658626]
[1757340754431,0.06,214.37,214.33,26.7]
[1757340754927,0.06,214.37,214.34,37.98]
[1757340755219,2.89637096,214.36,214.34,37.28]
[1757340755416,2.89637096,214.35,214.3,0.7]
[1757340755623,0.06,214.37,214.31,0.72]
[1757340755624,2.89637096,214.34,214.31,0.72]
[1757340755921,2.89637096,214.33,214.32,37.28]
[1757340756423,2.89637096,214.34,214.32,38.0]
[1757340756722,2.89637096,214.33,214.32,37.28]
[1757340756931,4.72497658,214.37,214.32,37.28]
[1757340757108,0.06,214.37,214.33,0.72]
[1757340757303,2.89637096,214.36,214.34,0.72]
[1757340757501,0.06,214.37,214.32,37.28]
[1757340757502,2.89637096,214.35,214.32,37.28]
[1757340757707,2.89637096,214.33,214.32,37.28]
[1757340757909,0.06,214.37,214.32,37.28]
[1757340758125,0.06,214.37,214.33,0.72]
[1757340758126,2.89637096,214.36,214.33,0.72]
[1757340758325,2.89637096,214.36,214.32,41.94591622]
[1757340758618,2.89637096,214.35,214.32,37.28]
[1757340758826,2.89637096,214.35,214.32,38.0]
[1757340759411,0.72,214.37,214.33,37.26]
[1757340759606,0.66,214.36,214.34,37.26]
[1757340759810,0.66,214.36,214.35,37.26]
[1757340760142,2.89637096,214.36,214.35,37.26]
[1757340760521,7.5614204,214.36,214.35,37.26]
[1757340761907,2.89637096,214.36,214.35,37.26]
[1757340762111,0.06,214.37,214.35,37.98]
[1757340762324,0.06,214.37,214.36,0.72]
[1757340764724,0.06,214.37,214.36,37.98]
[1757340765444,0.06,214.37,214.32,26.0]
[1757340765739,0.06,214.37,214.36,26.72]
[1757340765932,0.06,214.37,214.36,63.26]
[1757340766316,0.06,214.37,214.36,37.26]
[1757340767645,0.06,214.37,214.36,37.24]
[1757340767944,0.06,214.37,214.36,37.96]
[1757340768445,0.06,214.37,214.36,37.24]
[1757340772040,4.58362369,214.39,214.36,37.24]
[1757340772041,4.14362369,214.39,214.36,37.24]
[1757340772655,73.4,214.4,214.37,0.72]
[1757340772822,78.06418605,214.4,214.37,0.72]
[1757340773020,78.06419762,214.4,214.37,0.72]
[1757340773229,82.58782131,214.4,214.38,37.24]
[1757340774330,78.06419762,214.4,214.38,37.24]
[1757340775033,78.06419762,214.4,214.34,5.38541383]
[1757340775034,5.18362369,214.39,214.32,4.665728]
[1757340775246,4.52362369,214.39,214.33,0.72]
[1757340775426,4.52362369,214.39,214.33,37.96]
[1757340775820,4.52362369,214.38,214.34,37.24]
[1757340776146,4.52362369,214.39,214.34,37.96]
[1757340776337,5.18362369,214.39,214.34,37.96]
[1757340777152,94.24977351,214.38,214.31,0.72]
[1757340777438,4.52362369,214.35,214.32,37.22]
[1757340777649,4.52362369,214.35,214.33,37.22]
[1757340778054,73.4,214.37,214.27,0.03]
[1757340778229,0.66,214.36,214.28,37.94]
[1757340778549,4.52362369,214.34,214.29,0.72]
[1757340778842,4.52362369,214.34,214.3,0.72]
[1757340779245,4.66570242,214.33,214.3,0.72]
[1757340779742,4.52362369,214.32,214.31,37.22]
[1757340780130,4.66570242,214.33,214.31,37.22]
[1757340780829,4.52362369,214.33,214.32,37.22]
[1757340781032,9.18913616,214.34,214.32,37.22]
[1757340781239,4.52362369,214.34,214.32,37.22]
[1757340781426,9.18914555,214.34,214.29,0.72]
[1757340781749,9.18914555,214.34,214.3,37.22]
[1757340782331,4.52362369,214.34,214.3,37.22]
[1757340782532,9.18914565,214.34,214.3,37.94]
[1757340783046,73.46,214.37,214.31,0.72]
[1757340783246,4.52362369,214.36,214.31,0.72]
[1757340783563,4.52362369,214.35,214.32,37.22]
[1757340783727,4.52362369,214.36,214.33,0.72]
[1757340783926,4.52362369,214.36,214.32,37.22]
[1757340784344,77.92362369,214.35,214.32,37.22]
[1757340784546,77.92362369,214.35,214.33,37.94]
[1757340784547,73.4,214.35,214.33,37.94]
[1757340784742,73.4,214.35,214.34,0.72]
[1757340785459,4.66504944,214.36,214.33,37.22]
[1757340785635,9.18867313,214.36,214.33,37.22]
[1757340785948,4.52362369,214.34,214.28,0.66]
[1757340786148,4.52362369,214.33,214.29,37.22]
[1757340786339,4.52362369,214.33,214.29,37.88]
[1757340787036,0.7,214.35,214.29,0.66]
[1757340787243,4.52362369,214.35,214.3,37.22]
[1757340787555,4.52362369,214.34,214.3,37.88]
[1757340788759,17.02862256,214.35,214.3,37.88]
[1757340788952,4.52362369,214.34,214.3,37.88]
[1757340789152,4.52362369,214.34,214.3,37.22]
[1757340789657,4.52362369,214.33,214.31,37.2]
[1757340790059,4.6656866,214.34,214.31,37.2]
[1757340790357,4.52362369,214.33,214.31,37.2]
[1757340790935,4.52362369,214.34,214.31,0.66]
[1757340791145,4.52362369,214.34,214.32,37.2]
[1757340792660,4.66527062,214.35,214.32,37.2]
[1757340792840,4.52362369,214.34,214.32,37.2]
[1757340793240,4.52362369,214.33,214.32,37.2]
[1757340794865,9.18932611,214.33,214.32,37.2]
[1757340795161,77.92362369,214.36,214.32,37.86]
[1757340796062,73.4,214.35,214.32,37.86]
[1757340796262,73.4,214.35,214.33,0.66]
[1757340796956,78.06533937,214.35,214.33,0.66]
[1757340797341,73.4,214.35,214.32,37.2]
[1757340797542,0.06,214.37,214.34,0.66]
[1757340797742,0.06,214.37,214.35,0.66]
[1757340798041,0.06,214.37,214.36,37.2]
[1757340799563,5.28362369,214.37,214.31,0.66]
[1757340799740,4.52362369,214.35,214.32,37.21]
[1757340800256,4.52362369,214.33,214.32,0.03]
[1757340800451,0.7,214.35,214.32,37.21]
[1757340800452,4.52362369,214.34,214.32,37.21]
[1757340800659,4.52362369,214.35,214.32,37.21]
[1757340800970,4.52362369,214.33,214.32,0.03]
[1757340801159,18.1192177,214.33,214.32,0.03]
[1757340801368,20.68589059,214.33,214.32,0.03]
[1757340801949,24.15169386,214.33,214.32,0.03]
[1757340802963,28.81739628,214.33,214.32,0.03]
[1757340804454,26.0,214.3,214.29,0.03]
[1757340804758,30.52362369,214.3,214.29,0.03]
[1757340804964,31.22362369,214.3,214.29,0.03]
[1757340805645,35.18997926,214.3,214.29,0.03]
[1757340806452,35.88997926,214.3,214.29,0.03]
[1757340807085,49.48557327,214.3,214.29,0.03]
[1757340807371,57.46421069,214.3,214.29,0.03]
[1757340807959,59.33149356,214.3,214.29,0.03]
[1757340808348,39.59559401,214.26,214.24,0.03]
[1757340808553,26.0,214.2,214.12,0.66]
[1757340808783,39.59559401,214.2,214.12,0.66]
[1757340808967,44.8192177,214.2,214.12,0.66]
[1757340809153,46.68728542,214.2,214.12,0.66]
[1757340809551,51.21090911,214.2,214.1,0.4]
[1757340809752,9.19412016,214.11,214.1,1.06]
[1757340810189,9.19412016,214.11,214.1,0.86]
[1757340810354,4.52362369,214.12,214.1,0.86]
[1757340810545,4.52362369,214.12,214.11,0.66]
[1757340811064,6.39186591,214.12,214.11,0.66]
[1757340811392,1.86824222,214.12,214.11,0.66]
[1757340812673,11.06214425,214.12,214.1,0.2]
[1757340812867,11.06214425,214.12,214.1,0.86]
[1757340813166,4.52362369,214.11,214.1,0.86]
[1757340813553,6.53852056,214.12,214.1,0.86]
[1757340813762,11.06214425,214.12,214.1,0.86]
[1757340814276,4.52362369,214.11,214.1,0.2]
[1757340814578,9.19412016,214.11,214.1,0.2]
[1757340815070,1.86824222,214.12,214.1,38.04]
[1757340815271,4.66905295,214.18,214.11,0.66]
[1757340815471,4.52362369,214.16,214.11,0.66]
[1757340815678,14.00854521,214.16,214.11,0.66]
[1757340816764,4.66808488,214.23,214.14,26.0]
[1757340816959,4.66808488,214.23,214.15,0.68]
[1757340817162,14.00592918,214.21,214.15,0.68]
[1757340817980,0.67,214.31,214.18,26.0]
[1757340818169,4.66635557,214.3,214.19,37.86]
[1757340818368,14.00200696,214.29,214.2,0.68]
[1757340819173,4.66679111,214.28,214.21,4.66831613]
[1757340819383,4.66679111,214.28,214.22,0.68]
[1757340820387,10.64743511,214.3,214.22,5.34790369]
[1757340820686,4.66613783,214.31,214.23,0.68]
[1757340820860,0.06,214.39,214.23,0.68]
[1757340820861,4.66548474,214.34,214.25,26.0]
[1757340821176,4.66548474,214.34,214.26,37.84]
[1757340821370,0.06,214.29,214.27,0.68]
[1757340821977,0.06,214.29,214.28,26.0]
[1757340822369,0.06,214.29,214.28,31.34679111]
[1757340824277,0.06,214.29,214.28,33.21268033]
[1757340824691,0.06,214.29,214.28,46.80827434]
[1757340825556,0.06,214.29,214.28,68.50679111]
[1757340825864,0.06,214.29,214.28,0.68]
[1757340826159,0.06,214.29,214.28,37.84]
[1757340826586,0.06,214.29,214.25,5.3473811]
[1757340826789,0.06,214.29,214.28,37.16]
[1757340827786,0.06,214.29,214.27,26.0]
[1757340828093,0.06,214.29,214.28,37.14]
[1757340835195,0.06,214.29,214.28,37.82]
[1757340835897,0.06,214.29,214.28,37.14]
[1757340837389,0.06,214.29,214.28,37.12]
[1757340837693,7.19285046,214.29,214.28,37.12]
[1757340837885,7.86285046,214.29,214.28,37.12]
[1757340838080,7.86285046,214.29,214.21,0.68]
[1757340838282,7.13285046,214.26,214.21,0.68]
[1757340838688,7.13285046,214.26,214.22,37.12]
[1757340838878,73.3,214.28,214.22,37.8]
[1757340839083,7.13285046,214.27,214.22,37.8]
[1757340839278,4.66722673,214.26,214.23,0.68]
[1757340840001,77.96681152,214.28,214.24,0.68]
[1757340840494,77.96681152,214.28,214.22,41.78797296]
[1757340840690,77.96681152,214.28,214.25,0.68]
[1757340840892,77.96681152,214.28,214.26,37.12]
[1757340841789,0.06,214.29,214.27,0.68]
[1757340842383,0.06,214.29,214.28,0.68]
[1757340843084,0.06,214.29,214.28,26.68]
[1757340843285,0.06,214.29,214.28,31.34679111]
[1757340843490,0.06,214.32,214.28,31.34679111]
[1757340843700,0.06,214.32,214.29,26.68]
[1757340843997,0.06,214.32,214.3,37.12]
[1757340844208,0.06,214.32,214.3,37.8]
[1757340844382,0.06,214.32,214.31,0.68]
[1757340845185,0.06,214.32,214.31,37.8]
[1757340845388,0.06,214.32,214.31,42.46613783]
[1757340845701,0.06,214.32,214.31,37.8]
[1757340846806,0.06,214.32,214.31,42.46613783]
[1757340847008,0.06,214.32,214.31,37.8]
[1757340849127,0.06,214.32,214.28,0.68]
[1757340849415,0.06,214.32,214.29,37.78]
[1757340849793,0.06,214.32,214.3,0.68]
[1757340850693,0.06,214.32,214.31,0.68]
[1757340852819,0.06,214.32,214.31,37.1]
[1757340853520,0.06,214.32,214.31,37.78]
[1757340854025,0.06,214.32,214.31,42.44613783]
[1757340855733,0.06,214.32,214.28,12.34697778]
[1757340855893,0.06,214.32,214.31,26.0]
[1757340856431,0.06,214.32,214.31,26.68]
[1757340857504,0.06,214.32,214.31,5.34613783]
[1757340857695,0.06,214.32,214.31,42.44613783]
[1757340858415,0.06,214.32,214.31,31.34613783]
[1757340858620,0.06,214.32,214.31,68.42613783]
[1757340861223,0.06,214.32,214.31,31.34613783]
[1757340861421,0.06,214.32,214.31,42.42613783]
[1757340862130,0.01171145,214.32,214.31,42.42613783]
[1757340862708,0.01171145,214.32,214.31,67.74613783]
[1757340863206,0.01171145,214.32,214.29,0.68]
[1757340863407,0.01171145,214.32,214.26,0.68]
[1757340863609,0.01171145,214.32,214.25,33.58]
[1757340863610,4.66635557,214.3,214.25,33.58]
[1757340863810,7.82848636,214.29,214.26,37.08]
[1757340864001,7.82848636,214.29,214.27,37.08]
[1757340864002,7.12848636,214.29,214.27,37.08]
[1757340864205,4.66635557,214.3,214.27,37.08]
[1757340864407,12.49484193,214.3,214.27,37.08]
[1757340864825,5.36635557,214.3,214.27,37.08]
[1757340865213,0.7,214.3,214.27,37.08]
[1757340865506,11.79466943,214.31,214.28,37.08]
[1757340865726,12.49466943,214.31,214.28,37.08]
[1757340866112,12.49466943,214.31,214.29,37.08]
[1757340866313,0.7,214.3,214.29,37.08]
[1757340867137,7.56370824,214.31,214.29,37.08]
[1757340867341,8.26370824,214.31,214.25,5.34744438]
[1757340867629,8.26370824,214.31,214.26,37.08]
[1757340870422,8.26370824,214.31,214.26,37.76]
[1757340872429,8.26370824,214.31,214.26,0.68]
[1757340872627,8.26370824,214.31,214.27,37.06]
[1757340873332,2.89752517,214.28,214.24,0.68]
[1757340873504,2.89752517,214.27,214.25,37.06]
[1757340873705,3.59752517,214.28,214.26,37.06]
[1757340874134,4.66700891,214.27,214.26,37.06]
[1757340874712,8.26453408,214.27,214.17,34.29]
[1757340875043,2.89752517,214.2,214.18,37.06]
[1757340875339,0.7,214.22,214.18,37.06]
[1757340876251,4.66831613,214.21,214.18,37.06]
[1757340876414,4.66831613,214.21,214.19,37.06]
[1757340878118,4.66809821,214.22,214.19,37.06]
[1757340878443,4.66809821,214.22,214.19,37.74]
[1757340878952,4.66809821,214.22,214.19,37.06]
[1757340879139,14.00527532,214.23,214.2,0.68]
[1757340879445,7.5647519,214.26,214.2,0.68]
[1757340880138,2.89752517,214.25,214.2,0.68]
[1757340880317,4.66766243,214.24,214.19,37.06]
[1757340880513,4.66766243,214.24,214.21,0.68]
[1757340880724,8.2651876,214.24,214.22,37.06]
[1757340880940,2.89752517,214.23,214.22,37.06]
[1757340881922,7.56540548,214.23,214.22,37.06]
[1757340882440,7.56540548,214.23,214.18,0.71]
[1757340882441,2.89752517,214.24,214.18,0.03]
[1757340882738,2.89752517,214.24,214.19,37.74]
[1757340882941,7.56496974,214.25,214.2,0.68]
[1757340883117,7.56496974,214.25,214.19,37.06]
[1757340883118,7.56496974,214.25,214.21,0.68]
[1757340883318,2.89752517,214.24,214.22,37.06]
[1757340883623,2.89752517,214.23,214.18,0.03]
[1757340883822,2.89752517,214.22,214.19,37.06]
[1757340884526,7.56577608,214.22,214.19,37.06]
[1757340884745,2.89752517,214.23,214.19,37.74]
[1757340884944,2.89752517,214.23,214.2,0.68]
[1757340885145,76.19752517,214.23,214.2,0.68]
[1757340885326,76.19752517,214.23,214.19,37.06]
[1757340885524,73.3,214.23,214.2,0.68]
[1757340886328,73.3,214.23,214.21,0.68]
[1757340886528,73.3,214.23,214.22,37.74]
[1757340888147,73.3,214.23,214.18,0.03]
[1757340888346,77.96797893,214.23,214.2,26.0]
[1757340888550,77.96797893,214.23,214.19,37.74]
[1757340888730,81.5655041,214.23,214.18,0.03]
[1757340888926,93.23520488,214.23,214.19,37.06]
[1757340889125,80.8655041,214.23,214.19,37.06]
[1757340889324,80.8655041,214.23,214.2,37.06]
[1757340889627,81.5655041,214.23,214.18,0.03]
[1757340889927,80.8655041,214.23,214.19,37.06]
[1757340890458,82.49858759,214.23,214.19,37.06]
[1757340890628,82.49858759,214.23,214.18,0.03]
[1757340890828,82.49858759,214.23,214.2,37.06]
[1757340890829,77.96797893,214.23,214.2,37.06]
[1757340891040,82.49858759,214.23,214.2,37.06]
[1757340891237,82.49858759,214.23,214.18,0.03]
[1757340891238,4.53060866,214.21,214.18,0.03]
[1757340891444,4.53060866,214.21,214.19,37.06]
[1757340891637,5.23060866,214.21,214.19,37.06]
[1757340891847,5.23060866,214.2,214.18,0.03]
[1757340892047,4.53060866,214.19,214.18,0.03]
[1757340892242,5.23060866,214.19,214.18,37.09]
[1757340892643,9.8993607,214.19,214.18,37.09]
[1757340893252,23.90790592,214.19,214.18,37.09]
[1757340894465,23.90790592,214.19,214.18,0.03]
[1757340894834,23.90790592,214.19,214.18,19.81]
[1757340895152,23.90790592,214.19,214.15,0.03]
[1757340895153,39.59559401,214.16,214.15,0.03]
[1757340895373,44.12620267,214.16,214.15,0.03]
[1757340895657,44.82620267,214.16,214.15,0.03]
[1757340895861,18.12620267,214.15,214.14,1e-08]
[1757340896251,18.82620267,214.15,214.14,1e-08]
[1757340896945,23.49582676,214.15,214.14,1e-08]
[1757340897860,25.36415624,214.15,214.14,1e-08]
[1757340901339,20.13354758,214.15,214.14,1e-08]
[1757340901657,24.66415624,214.15,214.14,1e-08]
[1757340901865,25.36415624,214.15,214.14,1e-08]
[1757340902757,25.36415624,214.15,214.12,1e-08]
[1757340902758,26.0,214.13,214.12,1e-08]
[1757340903058,48.79626291,214.13,214.12,1e-08]
[1757340903263,49.49626291,214.13,214.12,1e-08]
[1757340904961,48.79626291,214.13,214.12,1e-08]
[1757340905350,18.26565425,214.13,214.12,1e-08]
[1757340905544,9.2006689,214.13,214.12,0.71000001]
[1757340905748,9.2006689,214.13,214.12,1e-08]
[1757340905948,9.8906689,214.13,214.12,1e-08]
[1757340907263,9.2006689,214.13,214.12,1e-08]
[1757340908045,4.67006024,214.13,214.12,1e-08]
[1757340908369,9.2006689,214.13,214.12,1e-08]
[1757340909964,4.66984215,214.14,214.12,1e-08]
[1757340910164,4.53060866,214.13,214.12,0.71000001]
[1757340910459,4.66984215,214.14,214.13,0.71]
[1757340910640,6.39893814,214.15,214.13,37.77]
[1757340910641,1.86832948,214.15,214.13,37.77]
[1757340910845,73.3,214.16,214.14,0.71]
[1757340912758,73.3,214.16,214.12,1e-08]
[1757340912759,4.53060866,214.15,214.12,1e-08]
[1757340912958,4.53060866,214.13,214.12,1e-08]
[1757340914068,9.8906689,214.13,214.12,1e-08]
[1757340914267,23.48626291,214.13,214.12,1e-08]
[1757340914944,13.59559401,214.12,214.1,1e-08]
[1757340915151,77.83060866,214.11,214.1,1e-08]
[1757340915365,78.52060866,214.11,214.1,1e-08]
[1757340916063,83.19110513,214.11,214.1,1e-08]
[1757340917472,97.96546506,214.11,214.1,1e-08]
[1757340917653,26.0,214.06,214.05,1e-08]
[1757340917973,26.0,214.06,214.03,1e-08]
[1757340917974,13.59559401,214.05,214.03,1e-08]
[1757340918169,13.59559401,214.05,213.94,14.02]
[1757340918170,39.59559401,214.03,213.95,0.71]
[1757340918449,4.53060866,214.0,213.94,0.71]
[1757340918650,30.53060866,214.0,213.96,0.71]
[1757340918950,30.53060866,214.0,213.93,37.36]
[1757340919152,4.67202392,214.04,213.99,0.74]
[1757340919369,4.53060866,214.0,213.99,0.74]
[1757340919746,4.53060866,214.01,213.99,0.74]
[1757340919971,13.59559401,214.05,213.99,0.74]
[1757340920170,4.53060866,214.03,213.99,0.74]
[1757340920376,9.20264093,214.04,213.99,0.74]
[1757340920575,4.53060866,214.03,213.99,0.74]
[1757340920964,4.53060866,214.02,214.0,38.13]
[1757340921163,4.53060866,214.02,214.0,37.42]
[1757340921366,9.20264093,214.04,214.01,0.71]
[1757340921555,9.20264093,214.04,214.02,0.71]
[1757340921871,9.20264093,214.04,214.03,0.71]
[1757340922051,11.67873757,214.07,214.03,0.71]
[1757340922251,4.53060866,214.05,214.03,0.71]
[1757340922459,26.0,214.03,213.99,0.03]
[1757340922679,18.12620267,214.0,213.99,0.03]
[1757340923278,19.99584206,214.0,213.99,0.03]
[1757340923649,20.68584206,214.0,213.99,0.03]
[1757340924057,25.35873925,214.0,213.99,0.03]
[1757340924469,31.50960835,214.0,213.99,0.03]
[1757340924979,30.81960835,214.0,213.99,0.03]
[1757340925177,6.54253658,214.0,213.99,0.03]
[1757340925474,28.94996896,214.0,213.99,0.03]
[1757340926167,15.35437495,214.0,213.99,0.03]
[1757340926367,6.5421968,214.01,213.99,0.74]
[1757340926570,15.35395586,214.02,214.0,0.71]
[1757340926772,10.68147776,214.04,214.01,0.71]
[1757340927082,14.01901914,214.06,214.02,0.71]
[1757340927083,10.68147776,214.05,214.02,0.71]
[1757340927263,24.7004969,214.06,214.03,0.71]
[1757340927461,10.68147776,214.05,214.03,0.71]
[1757340927875,10.68147776,214.04,214.0,37.38]
[1757340928175,4.67160759,214.06,213.99,37.43]
[1757340928176,10.68147776,214.01,213.99,37.43]
[1757340928367,10.68147776,214.0,213.99,0.03]
[1757340930270,11.67976779,214.05,213.99,0.74]
[1757340930457,4.67202392,214.04,213.99,0.74]
[1757340930880,10.68147776,214.05,213.99,0.74]
[1757340931384,10.68147776,214.07,214.0,26.0]
[1757340931582,10.68147776,214.08,214.01,0.71]
[1757340931962,10.68147776,214.1,214.01,0.71]
[1757340932280,13.59559401,214.14,214.01,0.71]
[1757340932281,15.35245671,214.09,214.02,4.67246051]
[1757340932462,15.35245671,214.09,214.03,0.71]
[1757340933062,10.68147776,214.08,214.03,0.71]
[1757340933378,4.67097895,214.09,214.04,37.32]
[1757340933379,10.68147776,214.05,214.04,37.32]
[1757340934188,10.68147776,214.05,214.0,0.71]
[1757340934484,15.35328341,214.05,214.04,37.3]
[1757340935057,4.67180565,214.05,214.04,37.3]
[1757340935265,1.86885322,214.09,214.04,37.3]
[1757340935480,10.68147776,214.06,214.04,37.3]
[1757340935668,10.68147776,214.06,214.05,37.28]
[1757340936586,15.35306516,214.06,214.01,0.7]
[1757340936767,4.6715874,214.06,214.04,37.28]
[1757340936969,10.68147776,214.05,214.04,37.28]
[1757340937467,10.68147776,214.05,214.03,37.26]
[1757340937669,10.68147776,214.04,214.03,37.26]
[1757340937880,10.68147776,214.04,214.01,0.7]
[1757340938087,10.68147776,214.02,214.01,37.26]
[1757340938268,10.68147776,214.02,213.99,0.03]
[1757340938470,10.68147776,214.0,213.99,0.03]
[1757340938674,24.27707177,214.0,213.99,0.03]
[1757340939000,24.95707177,214.0,213.99,0.03]
[1757340939191,10.68147776,214.0,213.99,0.03]
[1757340939379,6.54214347,214.01,213.99,0.03]
[1757340939569,10.68147776,214.0,213.99,0.03]
[1757340940466,15.35437495,214.0,213.99,0.03]
[1757340942408,29.62996896,214.0,213.99,0.03]
[1757340943508,28.94996896,214.0,213.99,0.03]
[1757340943698,15.35437495,214.0,213.99,0.03]
[1757340943998,28.94996896,214.0,213.99,0.03]
[1757340944970,29.62996896,214.0,213.99,0.03]
[1757340945394,28.94996896,214.0,213.99,0.03]
[1757340945875,29.62996896,214.0,213.99,0.03]
[1757340946075,43.65226441,214.0,213.99,0.03]
[1757340947387,42.97226441,214.0,213.99,0.03]
[1757340947689,43.65226441,214.0,213.99,0.03]
[1757340948296,42.97226441,214.0,213.99,0.03]
[1757340949920,18.69519264,214.0,213.99,0.73]
[1757340950078,15.35437495,214.0,213.99,0.73]
[1757340951082,15.35437495,214.0,213.99,0.03]
[1757340951693,15.35437495,214.0,213.96,0.03]
[1757340951694,29.62996896,214.0,213.96,0.03]
[1757340951900,24.27707177,213.97,213.96,0.03]
[1757340952285,18.26914637,213.97,213.96,0.03]
[1757340952491,4.67325469,213.99,213.96,0.73]
[1757340952795,7.15905388,213.97,213.96,0.03]
[1757340954401,7.15905388,213.99,213.96,0.73]
[1757340954800,7.15905388,214.0,213.97,0.7]
[1757340954997,7.15905388,213.99,213.98,0.7]
[1757340955689,7.15905388,214.0,213.98,0.7]
[1757340957202,4.67311556,213.99,213.98,0.7]
[1757340957586,7.15905388,214.01,213.98,0.7]
[1757340957807,7.15905388,214.0,213.98,0.7]
[1757340958586,7.15905388,214.0,213.96,0.03]
[1757340958794,16.3536118,214.02,213.99,0.7]
[1757340958795,4.67246051,214.02,213.99,0.7]
[1757340958992,4.67246051,214.02,214.0,0.7]
[1757340959192,4.67246051,214.02,214.01,0.7]
[1757340959707,7.15905388,214.02,214.01,0.7]
[1757340960294,11.83133551,214.03,214.01,0.7]
[1757340960609,4.67228163,214.03,214.01,0.7]
[1757340960789,4.67228163,214.03,213.96,0.03]
[1757340960790,4.67228163,214.03,214.02,0.7]
[1757340961100,4.67228163,214.03,214.0,0.7]
[1757340961305,11.73996666,214.05,214.01,0.7]
[1757340961510,0.06,214.05,214.01,37.8]
[1757340961700,0.06,214.05,214.02,0.7]
[1757340963098,0.06,214.05,214.04,26.0]
[1757340963412,0.06,214.05,214.04,31.37202392]
[1757340963590,0.06,214.08,214.04,46.74158159]
[1757340963790,0.06,214.08,214.05,0.7]
[1757340965094,0.06,214.08,214.06,13.59559401]
[1757340965408,0.06,214.1,214.09,39.59559401]
[1757340965714,0.06,214.11,214.1,26.0]
[1757340965915,0.06,214.11,214.1,37.08]
[1757340966104,0.06,214.11,214.1,37.8]
[1757340966297,0.06,214.11,214.1,0.72]